bitfinex-derivatives/quotes_BNBF0:USTF0_20250908
["timestamp","ask_amount","ask_price","bid_price","bid_amount"]
[1757315716713,0.68388553,872.63,870.9,1.21]
[1757315716912,0.68388553,872.62,870.9,1.21]
[1757315717109,0.68388553,872.61,870.9,1.21]
[1757315717308,1.02621906,872.66,870.9,1.21]
[1757315717613,0.68383532,872.65,870.9,1.21]
[1757315717811,0.68383532,872.64,870.9,1.21]
[1757315718008,0.68383532,872.63,870.9,1.21]
[1757315718209,1.02621906,872.61,870.9,1.21]
[1757315719908,1.02621906,872.62,870.9,1.21]
[1757315722416,1.02621906,872.63,870.9,1.21]
[1757315726922,1.02621906,872.63,870.89,0.19924824]
[1757315729721,2.56554765,872.63,870.89,0.19924824]
[1757315729918,2.56554765,872.63,870.9,1.372]
[1757315732123,1.53932859,872.63,870.9,1.372]
[1757315732323,2.56554765,873.15,870.9,1.372]
[1757315733225,3.59176671,873.52,870.9,1.372]
[1757315734027,5.13109531,874.07,870.9,1.372]
[1757315734227,1.14258697,874.06,870.9,1.372]
[1757315734424,1.14258697,874.05,870.9,1.372]
[1757315734625,5.13109531,874.07,870.9,1.372]
[1757315734825,1.14253465,874.06,870.9,1.372]
[1757315735024,1.14253465,874.05,870.9,1.372]
[1757315735221,5.13109531,874.07,870.9,1.372]
[1757315735425,1.14253465,874.06,870.9,1.372]
[1757315735625,1.14253465,874.05,870.9,1.372]
[1757315735821,1.14253935,874.04,870.9,1.372]
[1757315736025,5.13109531,874.07,870.9,1.372]
[1757315736224,1.14254406,874.06,870.9,1.372]
[1757315736425,1.14254406,874.05,870.9,1.372]
[1757315736623,1.14254406,874.04,870.9,1.372]
[1757315736823,5.13109531,874.07,870.9,1.372]
[1757315737022,1.14254428,874.06,870.9,1.372]
[1757315737227,1.14254428,874.05,870.9,1.372]
[1757315737427,1.14254428,874.04,870.9,1.372]
[1757315737627,1.14254428,874.03,870.9,1.372]
[1757315737924,1.14254428,874.02,870.9,1.372]
[1757315738124,1.14254428,874.01,870.9,1.372]
[1757315738328,1.14254428,874.0,870.9,1.372]
[1757315738529,1.14254428,873.99,870.9,1.372]
[1757315738829,0.1991046,875.29,870.9,1.372]
[1757315739025,1.14265419,875.28,870.9,1.372]
[1757315739228,1.14265419,875.27,870.9,1.372]
[1757315739429,1.14265419,875.26,870.9,1.372]
[1757315739627,0.1991046,875.29,870.9,1.372]
[1757315739628,1.14265419,875.25,870.9,1.372]
[1757315739830,1.14265419,875.24,870.9,1.372]
[1757315740029,1.14265419,875.23,870.9,1.372]
[1757315740326,1.14265419,875.22,870.9,1.372]
[1757315740527,0.1991046,875.29,870.9,1.372]
[1757315740730,1.14266492,875.28,870.9,1.372]
[1757315740928,1.14266492,875.27,870.9,1.372]
[1757315741127,1.14266492,875.26,870.9,1.372]
[1757315741328,1.14266492,875.25,870.9,1.372]
[1757315741528,1.14266492,875.24,870.9,1.372]
[1757315741729,1.14266492,875.23,870.9,1.372]
[1757315741934,1.14266492,875.22,870.9,1.372]
[1757315742128,1.14266492,875.21,870.9,1.372]
[1757315742332,1.14266492,875.2,870.9,1.372]
[1757315742631,1.14266492,875.19,870.9,1.372]
[1757315742832,1.14266492,875.18,870.9,1.372]
[1757315743027,1.14266492,875.17,870.9,1.372]
[1757315743328,1.14266492,875.16,870.9,1.372]
[1757315743529,1.14266492,875.15,870.9,1.372]
[1757315743727,1.14266492,875.14,870.9,1.372]
[1757315743929,1.14266492,875.13,870.9,1.372]
[1757315744228,1.14266492,875.12,870.9,1.372]
[1757315744427,1.14266492,875.11,870.9,1.372]
[1757315744626,1.14266492,875.1,870.9,1.372]
[1757315744828,1.14266492,875.09,870.9,1.372]
[1757315745128,1.14266492,875.08,870.9,1.372]
[1757315745331,1.14266492,875.07,870.9,1.372]
[1757315745529,1.14266492,875.06,870.9,1.372]
[1757315745729,1.02667905,872.43,870.9,1.372]
[1757315746633,2.56669762,872.37,870.9,1.372]
[1757315746836,3.25114908,872.36,870.9,1.372]
[1757315747036,2.56669762,872.36,870.9,1.372]
[1757315747332,2.56669762,872.37,870.9,1.372]
[1757315772351,1.02667905,872.37,870.9,1.372]
[1757315773052,1.02667905,872.38,870.9,1.372]
[1757315773953,1.02667905,872.4,870.9,1.372]
[1757315774153,1.7097091,872.39,870.9,1.372]
[1757315774456,1.02667905,872.39,870.9,1.372]
[1757315775857,1.02667905,872.43,870.9,1.372]
[1757315777659,1.02667905,872.44,870.9,1.372]
[1757315778258,1.02667905,872.46,870.9,1.372]
[1757315780357,0.68326858,872.45,870.9,1.372]
[1757315780658,1.02667905,872.45,870.9,1.372]
[1757315781058,1.02667905,872.45,870.89,0.19924824]
[1757315781262,1.02667905,872.48,870.89,0.19924824]
[1757315784164,1.02667905,872.48,870.9,1.646]
[1757315790971,2.56669762,872.48,870.9,1.646]
[1757315793475,1.02667905,872.48,870.9,1.646]
[1757315794974,1.02667905,872.48,871.05,0.19918209]
[1757315796578,1.02667905,872.49,871.05,0.19918209]
[1757315800484,1.54001857,872.59,871.05,0.19918209]
[1757315801682,2.56669762,873.55,871.05,0.19918209]
[1757315802481,3.59337668,874.02,871.05,0.19918209]
[1757315802687,1.14275081,874.01,871.05,0.19918209]
[1757315802883,1.14275081,874.0,871.05,0.19918209]
[1757315803085,1.14266518,873.99,871.05,0.19918209]
[1757315803383,1.14266518,873.98,871.05,0.19918209]
[1757315803584,1.14266518,873.97,871.05,0.19918209]
[1757315803883,1.14266518,873.96,871.05,0.19918209]
[1757315804184,1.14266518,873.95,871.05,0.19918209]
[1757315804385,0.19908979,875.19,871.05,0.19918209]
[1757315804586,1.14266387,875.18,871.05,0.19918209]
[1757315804783,1.14266387,875.17,871.05,0.19918209]
[1757315804983,1.14266387,875.16,871.05,0.19918209]
[1757315805187,1.14266387,875.15,871.05,0.19918209]
[1757315805488,1.14266387,875.14,871.05,0.19918209]
[1757315805686,1.14266387,875.13,871.05,0.19918209]
[1757315805885,1.14266387,875.12,871.05,0.19918209]
[1757315806086,1.14266387,875.11,871.05,0.19918209]
[1757315806286,1.14266387,875.1,871.05,0.19918209]
[1757315806489,1.14266387,875.09,871.05,0.19918209]
[1757315806688,1.14266387,875.08,871.05,0.19918209]
[1757315806886,1.14266387,875.07,871.05,0.19918209]
[1757315807090,1.14266387,875.06,871.05,0.19918209]
[1757315807290,1.14266387,875.05,871.05,0.19918209]
[1757315807489,1.14266387,875.04,871.05,0.19918209]
[1757315807690,1.14266387,875.03,871.05,0.19918209]
[1757315807885,1.14266387,875.02,871.05,0.19918209]
[1757315808187,1.14266387,875.01,871.05,0.19918209]
[1757315808385,1.14266387,875.0,871.05,0.19918209]
[1757315808589,1.14266387,874.99,871.05,0.19918209]
[1757315808788,1.14266387,874.98,871.05,0.19918209]
[1757315808986,1.14266387,874.97,871.05,0.19918209]
[1757315809189,1.14266387,874.96,871.05,0.19918209]
[1757315809386,1.14266387,874.95,871.05,0.19918209]
[1757315809588,1.14266387,874.94,871.05,0.19918209]
[1757315809789,1.14266387,874.93,871.05,0.19918209]
[1757315809987,1.14266387,874.92,871.05,0.19918209]
[1757315810189,1.14266387,874.91,871.05,0.19918209]
[1757315810386,1.14266387,874.9,871.05,0.19918209]
[1757315810689,1.14266387,874.89,871.05,0.19918209]
[1757315810890,1.14266387,874.88,871.05,0.19918209]
[1757315811090,1.14266387,874.87,871.05,0.19918209]
[1757315811287,1.14266387,874.86,871.05,0.19918209]
[1757315811588,0.19901749,875.44,871.05,0.19918209]
[1757315811589,1.14266387,874.85,871.05,0.19918209]
[1757315811789,1.14266387,874.84,871.05,0.19918209]
[1757315811986,1.14266387,874.83,871.05,0.19918209]
[1757315812190,1.14266387,874.82,871.05,0.19918209]
[1757315812390,1.14266387,874.81,871.05,0.19918209]
[1757315812590,1.14266387,874.8,871.05,0.19918209]
[1757315812790,1.14266387,874.79,871.05,0.19918209]
[1757315813091,1.14249618,874.78,871.06,1.319]
[1757315813287,1.14249618,874.77,871.06,1.319]
[1757315813487,1.14249618,874.76,871.06,1.319]
[1757315813688,1.14249618,874.75,871.06,1.319]
[1757315813886,1.14249618,874.74,871.06,1.319]
[1757315814090,1.14249618,874.73,871.06,1.319]
[1757315814288,1.14249618,874.72,871.06,1.319]
[1757315814488,1.14249618,874.71,871.06,1.319]
[1757315814690,1.14249618,874.7,871.06,1.319]
[1757315814889,1.14249618,874.69,871.06,1.319]
[1757315815188,1.14249618,874.68,871.06,1.319]
[1757315815386,1.14249618,874.67,871.06,1.319]
[1757315815691,1.14249618,874.66,871.06,1.319]
[1757315815987,1.14249618,874.65,871.06,1.319]
[1757315816189,1.14249618,874.64,871.06,1.319]
[1757315816388,1.14249618,874.63,871.06,1.319]
[1757315816587,1.14249618,874.62,871.06,1.319]
[1757315816787,1.14249618,874.61,871.06,1.319]
[1757315816987,1.14249618,874.6,871.06,1.319]
[1757315817187,1.14249618,874.59,871.06,1.319]
[1757315817388,1.14249618,874.58,871.06,1.319]
[1757315817587,1.14249618,874.57,871.06,1.319]
[1757315817791,1.14249618,874.56,871.06,1.319]
[1757315818087,1.14249618,874.55,871.06,1.319]
[1757315818290,1.82557084,874.54,871.06,1.319]
[1757315818493,1.14249618,874.53,871.06,1.319]
[1757315818687,1.14249618,874.52,871.06,1.319]
[1757315818885,1.14249618,874.51,871.06,1.319]
[1757315819087,1.14249618,874.5,871.06,1.319]
[1757315819291,1.14249618,874.49,871.06,1.319]
[1757315819491,1.14249618,874.48,871.06,1.319]
[1757315819789,1.14249618,874.47,871.06,1.319]
[1757315819991,1.14249618,874.46,871.06,1.319]
[1757315820193,1.14249618,874.45,871.06,1.319]
[1757315820392,1.14249618,874.44,871.06,1.319]
[1757315820588,1.14249618,874.43,871.06,1.319]
[1757315820793,1.14249618,874.42,871.06,1.319]
[1757315820993,1.14249618,874.41,871.06,1.319]
[1757315821194,1.14249618,874.4,871.06,1.319]
[1757315821493,1.14249618,874.39,871.06,1.319]
[1757315821691,1.14249618,874.38,871.06,1.319]
[1757315821893,1.14249618,874.37,871.06,1.319]
[1757315822090,1.14249618,874.36,871.06,1.319]
[1757315822292,1.14249618,874.35,871.06,1.319]
[1757315822592,1.14249618,874.34,871.06,1.319]
[1757315822894,1.14249618,874.33,871.06,1.319]
[1757315823095,1.14249618,874.32,871.06,1.319]
[1757315823295,1.02432965,872.65,871.06,1.319]
[1757315827298,2.56082412,872.65,871.06,1.319]
[1757315827498,1.02432965,872.65,871.06,1.319]
[1757315828197,2.56082412,872.65,871.06,1.319]
[1757315829401,1.02432965,872.65,871.06,1.319]
[1757315830600,1.02432965,872.66,871.06,1.319]
[1757315832102,2.56082412,872.66,871.06,1.319]
[1757315838903,1.02432965,872.8,871.06,1.319]
[1757315839202,1.02432965,873.01,871.06,1.319]
[1757315839405,1.02432965,873.03,871.06,1.319]
[1757315839603,0.68275675,873.02,871.06,1.319]
[1757315839807,0.68275675,873.01,871.06,1.319]
[1757315840107,1.02432965,873.04,871.06,1.319]
[1757315840307,0.68277057,873.03,871.06,1.319]
[1757315840506,0.68277057,873.02,871.06,1.319]
[1757315840705,0.68277057,873.01,871.06,1.319]
[1757315840904,1.02432965,873.06,871.06,1.319]
[1757315841105,0.68244858,873.05,871.06,1.319]
[1757315841304,0.68244858,873.04,871.06,1.319]
[1757315841505,0.68244858,873.03,871.06,1.319]
[1757315841805,0.68244858,873.02,871.06,1.319]
[1757315842009,0.68244858,873.01,871.06,1.319]
[1757315842310,1.02432965,873.05,871.06,1.319]
[1757315842510,0.68195872,873.04,871.06,1.319]
[1757315842806,0.68195872,873.03,871.06,1.319]
[1757315843107,0.68195872,873.02,871.06,1.319]
[1757315843307,0.68195872,873.01,871.06,1.319]
[1757315843509,1.02432965,873.05,871.06,1.319]
[1757315843709,1.70609582,873.04,871.06,1.319]
[1757315843906,0.68176617,873.03,871.06,1.319]
[1757315844109,0.68176617,873.02,871.06,1.319]
[1757315844310,3.58515377,874.91,871.06,1.319]
[1757315844311,0.68176617,873.01,871.35,0.5]
[1757315844509,1.02432965,873.03,871.35,0.5]
[1757315844713,0.68160107,873.02,871.35,0.5]
[1757315844913,0.68160107,873.01,871.35,0.5]
[1757315845114,1.02432965,873.03,871.35,0.5]
[1757315845313,1.70593836,873.02,871.35,0.5]
[1757315845608,0.68160871,873.01,871.35,0.5]
[1757315845814,1.02432965,873.02,871.35,0.5]
[1757315846013,0.68145998,873.01,871.35,0.5]
[1757315846211,1.02432965,873.02,871.35,0.5]
[1757315846414,0.68147039,873.01,871.35,0.5]
[1757315846609,1.02432965,873.02,871.35,0.5]
[1757315846809,0.68134039,873.01,871.35,0.5]
[1757315847111,1.02432965,873.01,871.35,0.5]
[1757315853015,2.56082412,873.01,871.35,0.5]
[1757315866524,1.02432965,873.01,871.35,0.5]
[1757315869326,1.02432965,873.07,871.35,0.5]
[1757315870633,1.02432965,873.12,871.35,0.5]
[1757315870829,1.02432965,873.13,871.35,0.5]
[1757315871433,1.02432965,873.13,871.36,1.585]
[1757315875437,1.02432965,873.16,871.36,1.585]
[1757315875935,1.02432965,873.17,871.36,1.585]
[1757315876133,0.68087784,873.16,871.36,1.585]
[1757315876337,1.02432965,873.18,871.36,1.585]
[1757315876538,1.70519048,873.17,871.36,1.585]
[1757315876738,0.68086083,873.16,871.36,1.585]
[1757315876938,1.02432965,873.17,871.36,1.585]
[1757315877137,0.68086083,873.16,871.36,1.585]
[1757315877335,1.02432965,873.17,871.36,1.585]
[1757315877640,1.70518326,873.16,871.36,1.585]
[1757315877935,1.02432965,873.16,871.36,1.585]
[1757315878239,1.02432965,873.17,871.36,1.585]
[1757315878437,1.70518584,873.16,871.36,1.585]
[1757315878737,1.02432965,873.16,871.36,1.585]
[1757315881442,1.02432965,873.17,871.36,1.585]
[1757315881642,1.70522046,873.16,871.36,1.585]
[1757315881942,1.02432965,873.16,871.36,1.585]
[1757315885350,1.02432965,873.17,871.36,1.585]
[1757315885546,1.02432965,873.18,871.36,1.585]
[1757315885750,1.02432965,873.21,871.36,1.585]
[1757315886447,1.02432965,873.21,871.44,0.5]
[1757315887147,1.70542221,873.2,871.44,0.5]
[1757315887349,1.02432965,873.2,871.44,0.5]
[1757315887548,1.02432965,873.21,871.44,0.5]
[1757315887749,1.70551514,873.2,871.44,0.5]
[1757315888053,1.02432965,873.2,871.44,0.5]
[1757315888250,1.02432965,873.21,871.44,0.5]
[1757315888648,3.24209645,873.2,871.44,0.5]
[1757315888949,2.56082412,873.2,871.44,0.5]
[1757315890252,1.02432965,873.2,871.44,0.5]
[1757315895360,1.02432965,873.21,871.44,0.5]
[1757315896660,1.70689265,873.2,871.44,0.5]
[1757315896857,1.02432965,873.2,871.44,0.5]
[1757315897361,2.56082412,873.2,871.44,0.5]
[1757315899563,1.02432965,873.2,871.44,0.5]
[1757315901961,1.53649447,873.23,871.44,0.5]
[1757315901962,1.02432965,873.21,871.44,0.5]
[1757315903365,1.7074965,873.2,871.44,0.5]
[1757315903571,1.02432965,873.21,871.44,0.5]
[1757315903969,2.56082412,873.21,871.44,0.5]
[1757315906470,3.24399655,873.2,871.44,0.5]
[1757315906672,2.56082412,873.2,871.44,0.5]
[1757315906966,1.02432965,873.42,871.44,0.5]
[1757315907166,1.02432965,873.37,871.44,0.5]
[1757315907370,1.70739271,873.36,871.44,0.5]
[1757315907668,1.02432965,873.36,871.44,0.5]
[1757315908671,1.02432965,873.36,871.45,1.209]
[1757315908972,1.02432965,873.34,871.45,1.209]
[1757315912371,2.56082412,873.34,871.45,1.209]
[1757315921587,2.56082412,873.35,871.45,1.209]
[1757315922588,1.02432965,873.35,871.45,1.209]
[1757315923288,2.56082412,873.35,871.45,1.209]
[1757315924190,1.02432965,873.35,871.45,1.209]
[1757315924391,2.56082412,873.35,871.45,1.209]
[1757315924591,2.56082412,873.35,871.44,0.5]
[1757315925489,1.02432965,873.43,871.44,0.5]
[1757315925692,1.02432965,873.49,871.44,0.5]
[1757315925894,0.68275663,873.48,871.44,0.5]
[1757315926093,0.68275663,873.47,871.44,0.5]
[1757315926393,0.68275663,873.46,871.44,0.5]
[1757315926593,0.68275663,873.45,871.44,0.5]
[1757315926889,0.68275663,873.44,871.85,0.5]
[1757315927090,0.68275663,873.43,871.85,0.5]
[1757315927293,0.68271736,873.42,871.86,1.633]
[1757315927494,0.68271736,873.41,871.86,1.633]
[1757315927693,2.56082412,875.05,871.86,1.633]
[1757315927694,0.68281261,873.4,871.86,1.633]
[1757315927894,1.02432965,873.54,871.86,1.633]
[1757315928094,0.68281261,873.53,871.86,1.633]
[1757315928390,0.68281261,873.52,871.86,1.633]
[1757315928691,0.68281261,873.51,871.86,1.633]
[1757315928890,0.68281261,873.5,871.86,1.633]
[1757315929090,0.68281261,873.49,871.86,1.633]
[1757315929293,0.68281261,873.48,871.86,1.633]
[1757315929492,0.68281261,873.47,871.86,1.633]
[1757315929696,0.68281261,873.46,871.86,1.633]
[1757315929992,0.68281261,873.45,871.86,1.633]
[1757315930190,0.68281261,873.44,871.86,1.633]
[1757315930392,0.68281261,873.43,871.86,1.633]
[1757315930592,0.68281261,873.42,871.86,1.633]
[1757315930794,0.68281261,873.41,871.86,1.633]
[1757315930993,0.68281261,873.4,871.86,1.633]
[1757315931193,1.02432965,873.53,871.86,1.633]
[1757315931496,0.68293405,873.52,871.86,1.633]
[1757315931695,0.68293405,873.51,871.86,1.633]
[1757315931896,0.68293405,873.5,871.86,1.633]
[1757315932096,0.68293405,873.49,871.86,1.633]
[1757315932295,0.68293405,873.48,871.86,1.633]
[1757315932495,0.68293405,873.47,871.86,1.633]
[1757315932696,0.68293405,873.46,871.86,1.633]
[1757315932894,0.68293405,873.45,871.86,1.633]
[1757315933099,0.68293405,873.44,871.86,1.633]
[1757315933299,0.68293405,873.43,871.86,1.633]
[1757315933499,0.68293405,873.42,871.86,1.633]
[1757315933699,0.68293405,873.41,871.86,1.633]
[1757315933897,0.68293405,873.4,871.86,1.633]
[1757315934098,1.02432965,873.53,871.86,1.633]
[1757315934298,0.68292931,873.52,871.86,1.633]
[1757315934498,0.68292931,873.51,871.86,1.633]
[1757315934699,0.68292931,873.5,871.86,1.633]
[1757315934899,0.68292931,873.49,871.86,1.633]
[1757315935098,0.68292931,873.48,871.86,1.633]
[1757315935297,2.56082412,875.15,871.86,1.633]
[1757315935298,1.02432965,873.45,871.86,1.633]
[1757315935502,0.68292931,873.44,871.86,1.633]
[1757315935701,0.68292931,873.43,871.86,1.633]
[1757315935900,0.68292931,873.42,871.86,1.633]
[1757315936098,0.68292931,873.41,871.86,1.633]
[1757315936302,0.68292931,873.4,871.86,1.633]
[1757315936504,1.02432965,873.45,871.86,1.633]
[1757315936804,0.6829428,873.44,871.86,1.633]
[1757315937004,1.02432965,873.41,871.86,1.633]
[1757315937202,0.6829428,873.43,871.86,1.633]
[1757315937203,1.70727245,873.4,871.86,1.633]
[1757315937405,1.02432965,873.4,871.86,1.633]
[1757315939505,1.02432965,873.44,871.86,1.633]
[1757315939705,1.70728712,873.43,871.86,1.633]
[1757315939905,0.68295747,873.42,871.86,1.633]
[1757315940108,0.68295747,873.41,871.86,1.633]
[1757315940306,0.68295747,873.4,871.86,1.633]
[1757315940504,1.02432965,873.43,871.86,1.633]
[1757315940705,0.68295747,873.42,871.86,1.633]
[1757315940903,0.68295747,873.41,871.86,1.633]
[1757315941107,0.68295747,873.4,871.86,1.633]
[1757315941305,1.02432965,873.43,871.86,1.633]
[1757315941504,1.02432965,873.41,871.86,1.633]
[1757315941707,1.70730542,873.4,871.86,1.633]
[1757315941906,1.02432965,873.4,871.86,1.633]
[1757315943812,1.02432965,873.41,871.86,1.633]
[1757315944016,0.68301546,873.4,871.86,1.633]
[1757315944313,1.02432965,873.4,871.86,1.633]
[1757315948917,1.70744804,873.39,871.86,1.633]
[1757315949118,1.53649447,873.36,871.86,1.633]
[1757315949417,1.02432965,873.33,871.86,1.633]
[1757315949814,1.70753139,873.32,871.86,1.633]
[1757315950013,2.56082412,873.32,871.86,1.633]
[1757315950219,2.56082412,873.28,871.86,1.633]
[1757315951918,2.56082412,873.26,871.86,1.633]
[1757315952319,1.70768776,873.25,871.86,1.633]
[1757315952519,1.02432965,873.25,871.86,1.633]
[1757315956720,1.02432965,873.26,871.86,1.633]
[1757315964325,1.02432965,873.26,871.62,0.5]
[1757315968133,1.02432965,873.26,871.63,1.714]
[1757315968736,1.70815403,873.25,871.63,1.714]
[1757315968935,1.02432965,873.25,871.63,1.714]
[1757315981841,2.56082412,873.25,871.63,1.714]
[1757315982046,1.02432965,873.25,871.63,1.714]
[1757315986145,1.02432965,873.27,871.63,1.714]
[1757315986345,1.02432965,873.3,871.63,1.714]
[1757315987444,1.02432965,873.31,871.63,1.714]
[1757315990348,1.02432965,873.29,871.63,1.714]
[1757315992251,1.02432965,873.3,871.63,1.714]
[1757315993457,1.70811264,873.29,871.63,1.714]
[1757315993655,1.02432965,873.29,871.63,1.714]
[1757316000666,1.02432965,873.3,871.63,1.714]
[1757316000871,1.7083568,873.29,871.63,1.714]
[1757316001070,1.02432965,873.3,871.63,1.714]
[1757316003372,0.68419902,873.29,871.63,1.714]
[1757316003667,1.02432965,873.29,871.63,1.714]
[1757316004668,2.56082412,873.29,871.63,1.714]
[1757316004974,3.24509747,873.28,871.63,1.714]
[1757316005168,2.56082412,873.26,871.63,1.714]
[1757316005776,1.02432965,873.26,871.63,1.714]
[1757316006071,0.68533108,873.25,871.63,1.714]
[1757316006274,1.02432965,873.25,871.63,1.714]
[1757316007075,1.70976071,873.24,871.63,1.714]
[1757316007271,1.02432965,873.24,871.63,1.714]
[1757316007974,1.02432965,873.24,871.62,0.5]
[1757316011576,1.02432965,873.24,871.63,1.192]
[1757316018890,0.68663633,873.23,871.63,1.192]
[1757316019089,1.02432965,873.21,871.63,1.192]
[1757316023698,0.68750316,873.2,871.63,1.192]
[1757316023897,1.02432965,873.4,871.63,1.192]
[1757316024092,0.68749809,873.39,871.63,1.192]
[1757316024294,0.68749809,873.38,871.63,1.192]
[1757316024498,0.68749809,873.37,871.63,1.192]
[1757316024696,0.68749809,873.36,871.63,1.192]
[1757316024899,0.68749809,873.35,871.63,1.192]
[1757316025098,0.68749809,873.34,871.63,1.192]
[1757316025296,0.68749809,873.33,871.63,1.192]
[1757316025499,0.68749809,873.32,871.63,1.192]
[1757316025699,0.68749809,873.31,871.63,1.192]
[1757316025900,0.68749809,873.3,871.63,1.192]
[1757316026196,0.68749809,873.29,871.63,1.192]
[1757316026395,0.68749809,873.28,871.63,1.192]
[1757316026593,0.68749809,873.27,871.63,1.192]
[1757316026797,0.68749809,873.26,871.63,1.192]
[1757316027001,0.68749809,873.25,871.63,1.192]
[1757316027296,0.68749809,873.24,871.63,1.192]
[1757316027496,0.68749809,873.23,871.63,1.192]
[1757316027702,0.68749809,873.22,871.63,1.192]
[1757316027897,0.68749809,873.21,871.63,1.192]
[1757316028096,1.02432965,873.41,871.63,1.192]
[1757316028299,0.68742966,873.4,871.63,1.192]
[1757316028497,0.68742966,873.39,871.63,1.192]
[1757316028799,1.71175931,873.38,871.63,1.192]
[1757316029001,0.68742966,873.37,871.63,1.192]
[1757316029200,0.68742966,873.36,871.63,1.192]
[1757316029399,0.68742966,873.35,871.63,1.192]
[1757316029599,0.68742966,873.34,871.63,1.192]
[1757316029803,0.68742966,873.33,871.63,1.192]
[1757316030003,0.68742966,873.32,871.63,1.192]
[1757316030200,0.68742966,873.31,871.63,1.192]
[1757316030500,0.68742966,873.3,871.63,1.192]
[1757316030801,0.68742966,873.29,871.63,1.192]
[1757316031002,0.68742966,873.28,871.63,1.192]
[1757316031207,0.68742966,873.27,871.63,1.192]
[1757316031405,0.68742966,873.26,871.63,1.192]
[1757316031705,0.68742966,873.25,871.63,1.192]
[1757316031905,0.68742966,873.24,871.63,1.192]
[1757316032201,0.68742966,873.23,871.63,1.192]
[1757316032405,0.68742966,873.22,871.63,1.192]
[1757316032701,0.68742966,873.21,871.63,1.192]
[1757316032905,1.02432965,873.36,871.63,1.192]
[1757316033105,1.71267643,873.35,871.63,1.192]
[1757316033304,0.68834678,873.34,871.63,1.192]
[1757316033503,1.71267643,873.33,871.63,1.192]
[1757316033705,0.68834678,873.32,871.63,1.192]
[1757316033902,0.68834678,873.31,871.63,1.192]
[1757316034106,0.68834678,873.3,871.63,1.192]
[1757316034406,0.68834678,873.29,871.63,1.192]
[1757316034602,0.68834678,873.28,871.63,1.192]
[1757316034803,0.68834678,873.27,871.63,1.192]
[1757316035006,0.68834678,873.26,871.63,1.192]
[1757316035205,0.68834678,873.25,871.63,1.192]
[1757316035504,0.68834678,873.24,871.63,1.192]
[1757316035707,0.68834678,873.23,871.63,1.192]
[1757316035902,0.68834678,873.22,871.63,1.192]
[1757316036107,1.71267643,873.21,871.63,1.192]
[1757316036312,1.02432965,873.21,871.63,1.192]
[1757316045611,2.56082412,873.21,871.63,1.192]
[1757316056620,2.56082412,873.21,871.62,0.5]
[1757316060229,2.56082412,873.21,871.63,1.301]
[1757316083450,2.56082412,873.21,871.62,0.5]
[1757316086856,2.56082412,873.21,871.63,1.52]
[1757316096059,1.02432965,873.21,871.63,1.52]
[1757316096459,1.02432965,873.35,871.63,1.52]
[1757316096657,1.02432965,873.37,871.63,1.52]
[1757316098362,1.02432965,873.38,871.63,1.52]
[1757316098661,1.71805073,873.37,871.63,1.52]
[1757316098861,1.02432965,873.37,871.63,1.52]
[1757316100562,2.56082412,873.34,871.63,1.52]
[1757316100862,2.56082412,873.32,871.63,1.52]
[1757316101063,2.56082412,873.3,871.63,1.52]
[1757316101262,1.02432965,873.27,871.63,1.52]
[1757316101466,1.02432965,873.25,871.63,1.52]
[1757316102163,1.02432965,873.25,871.62,0.5]
[1757316102466,1.71903581,873.24,871.62,0.5]
[1757316102766,2.56082412,873.24,871.62,0.5]
[1757316102965,2.56082412,873.21,871.62,0.5]
[1757316103164,3.25555599,873.2,871.62,0.5]
[1757316103366,2.56082412,873.2,871.62,0.5]
[1757316104168,2.56082412,873.2,871.63,1.347]
[1757316104863,2.56082412,873.21,871.63,1.347]
[1757316107465,2.56082412,873.22,871.63,1.347]